fUSD/lending_fUSD_20260420
["ID","MTS","AMOUNT","RATE_DAILY","PERIOD"]
[420845483,1776628020693,800.0,0.0001,3]
[420845484,1776628058862,153.65,9.94e-05,2]
[420845485,1776628089911,1500.0,9.921e-05,2]
[420845486,1776628090881,1476.0,0.0001,3]
[420845487,1776628097121,152.0,0.0001,3]
[420845488,1776628131877,164.0,0.0001,3]
[420845489,1776628145435,1149.26,0.0001,3]
[420845490,1776628145459,252.74,0.0001,3]
[420845491,1776628175432,152.0,0.0001,3]
[420845495,1776628208862,152.0,0.0001,3]
[420845497,1776628235219,-255.0,0.00010052,2]
[420845498,1776628235228,-250.0,0.00010058,2]
[420845499,1776628235238,-150.0,0.00010103,2]
[420845500,1776628235248,-260.53,0.00010169,2]
[420845501,1776628235257,-300.0,0.00010306,2]
[420845502,1776628235266,-300.0,0.00010306,2]
[420845503,1776628235275,-300.0,0.00010306,2]
[420845504,1776628235285,-1200.0,0.00010306,2]
[420845505,1776628235294,-300.0,0.00010307,2]
[420845506,1776628235304,-1200.0,0.00010307,2]
[420845507,1776628235313,-150.0,0.00010308,2]
[420845508,1776628235322,-2000.0,0.00010308,2]
[420845509,1776628235331,-2360.69,0.00010308,2]
[420845510,1776628235340,-1600.0,0.00010308,2]
[420845511,1776628235349,-500.0,0.00010373,2]
[420845512,1776628235359,-15712.96858594,0.00010387,2]
[420845513,1776628235371,-1046.42972454,0.00010387,2]
[420845514,1776628235383,-452.04785907,0.00010387,2]
[420845515,1776628235395,-729.0,0.00010387,2]
[420845516,1776628235414,-154628.28850856,0.00010387,2]
[420845517,1776628235425,-16178.7450731,0.00010387,2]
[420845518,1776628235436,-33253.79905268,0.00010387,2]
[420845519,1776628235447,-29121.49801325,0.00010387,2]
[420845520,1776628235458,-1784.80487419,0.00010387,2]
[420845521,1776628235470,-1009.25911231,0.00010387,2]
[420845522,1776628235481,-1200.0,0.00010387,2]
[420845523,1776628235492,-1800.0,0.00010387,2]
[420845524,1776628235503,-51102.38109636,0.00010387,2]
[420845525,1776628235512,-150.0,0.00010393,2]
[420845526,1776628235521,-2641.8407,0.00010394,2]
[420845527,1776628235531,-4155.9118,0.00010394,2]
[420845528,1776628235540,-6155.49501074,0.00010394,2]
[420845529,1776628235552,-434.8782,0.00010394,2]
[420845530,1776628235573,-191.54758926,0.00010394,2]
[420845531,1776628235582,-2500.0,0.00010394,2]
[420845532,1776628235591,-150.0,0.00010403,2]
[420845533,1776628235601,-152.0,0.00010462,7]
[420845534,1776628235611,-500.0,0.00010473,2]
[420845535,1776628235620,-205.06,0.00010487,2]
[420845536,1776628235630,-200.0,0.00010487,2]
[420845537,1776628235639,-151.0,0.00010487,2]
[420845538,1776628235649,-151.0,0.00010487,2]
[420845539,1776628235659,-151.0,0.00010487,2]
[420845540,1776628235668,-151.0,0.00010487,2]
[420845541,1776628235678,-151.0,0.00010487,2]
[420845542,1776628235687,-151.0,0.00010487,2]
[420845543,1776628235697,-151.0,0.00010487,2]
[420845544,1776628235706,-151.0,0.00010487,2]
[420845545,1776628235715,-151.0,0.00010487,2]
[420845546,1776628235724,-151.0,0.00010487,2]
[420845547,1776628235734,-151.0,0.00010487,2]
[420845548,1776628235743,-151.0,0.00010487,2]
[420845549,1776628235753,-500.0,0.00010487,2]
[420845550,1776628235762,-500.0,0.00010487,2]
[420845551,1776628235771,-500.0,0.00010487,2]
[420845552,1776628235780,-500.0,0.00010487,2]
[420845553,1776628235790,-500.0,0.00010487,2]
[420845554,1776628235799,-500.0,0.00010487,2]
[420845555,1776628235809,-221.9670566,0.00010487,2]
[420845556,1776628235818,-1000.0,0.00010492,2]
[420845557,1776628235828,-181.87813958,0.00010493,2]
[420845558,1776628235837,-500.0,0.00010493,2]
[420845559,1776628235847,-500.0,0.00010493,2]
[420845560,1776628235858,-500.0,0.00010493,2]
[420845561,1776628235867,-500.0,0.00010493,2]
[420845562,1776628235877,-500.0,0.00010493,2]
[420845563,1776628235887,-500.0,0.00010493,2]
[420845564,1776628235897,-500.0,0.00010493,2]
[420845565,1776628235906,-500.0,0.00010493,2]
[420845566,1776628235916,-500.0,0.00010493,2]
[420845567,1776628235925,-500.0,0.00010493,2]
[420845568,1776628235934,-500.0,0.00010493,2]
[420845569,1776628235944,-500.0,0.00010493,2]
[420845570,1776628235953,-500.0,0.00010493,2]
[420845571,1776628235963,-500.0,0.00010493,2]
[420845572,1776628235972,-500.0,0.00010493,2]
[420845573,1776628235981,-500.0,0.00010493,2]
[420845574,1776628235991,-500.0,0.00010493,2]
[420845575,1776628236000,-500.0,0.00010493,2]
[420845576,1776628236009,-500.0,0.00010493,2]
[420845577,1776628236019,-500.0,0.00010493,2]
[420845578,1776628236028,-500.0,0.00010493,2]
[420845579,1776628236038,-500.0,0.00010493,2]
[420845580,1776628236047,-500.0,0.00010493,2]
[420845581,1776628236056,-500.0,0.00010493,2]
[420845582,1776628236067,-500.0,0.00010493,2]
[420845583,1776628236076,-500.0,0.00010493,2]
[420845584,1776628236086,-500.0,0.00010493,2]
[420845585,1776628236095,-500.0,0.00010493,2]
[420845586,1776628236104,-500.0,0.00010493,2]
[420845587,1776628236114,-500.0,0.00010493,2]
[420845588,1776628236123,-500.0,0.00010493,2]
[420845589,1776628236133,-500.0,0.00010493,2]
[420845590,1776628236142,-500.0,0.00010493,2]
[420845591,1776628236151,-500.0,0.00010493,2]
[420845592,1776628236161,-500.0,0.00010493,2]
[420845593,1776628236170,-500.0,0.00010493,2]
[420845594,1776628236179,-500.0,0.00010493,2]
[420845595,1776628236189,-500.0,0.00010493,2]
[420845596,1776628236198,-500.0,0.00010493,2]
[420845597,1776628236207,-500.0,0.00010493,2]
[420845598,1776628236217,-500.0,0.00010493,2]
[420845599,1776628236226,-500.0,0.00010493,2]
[420845600,1776628236236,-563.74970171,0.00010493,2]
[420845601,1776628236246,-500.0,0.00010493,2]
[420845602,1776628236255,-500.0,0.00010493,2]
[420845603,1776628236264,-500.0,0.00010493,2]
[420845604,1776628236274,-500.0,0.00010493,2]
[420845605,1776628236283,-500.0,0.00010493,2]
[420845606,1776628236293,-500.0,0.00010493,2]
[420845607,1776628236302,-500.0,0.00010493,2]
[420845608,1776628236312,-170.77325197,0.00010493,2]
[420845609,1776628236321,-500.0,0.00010493,2]
[420845610,1776628236330,-500.0,0.00010493,2]
[420845611,1776628236340,-500.0,0.00010493,2]
[420845612,1776628236349,-500.0,0.00010493,2]
[420845613,1776628236358,-500.0,0.00010493,2]
[420845614,1776628236367,-500.0,0.00010493,2]
[420845615,1776628236376,-500.0,0.00010493,2]
[420845616,1776628236386,-500.0,0.00010493,2]
[420845617,1776628236395,-500.0,0.00010493,2]
[420845618,1776628236404,-401.93088244,0.00010493,2]
[420845619,1776628236414,-4621.335,0.00010493,2]
[420845620,1776628236423,-241.454,0.00010493,2]
[420845621,1776628236432,-250.0,0.00010493,2]
[420845622,1776628236441,-152.0,0.00010496,7]
[420845623,1776628236450,-153.65,0.00010561,2]
[420845624,1776628236459,-6579.28098046,0.00010599,2]
[420845625,1776628236469,-205.06,0.00010761,2]
[420845626,1776628236479,-5500.87531863,0.000109,2]
[420845627,1776628236488,-196.13223267,0.00010932,2]
[420845628,1776628236497,-150.0,0.00010959,2]
[420845629,1776628236507,-205.06,0.00011035,2]
[420845630,1776628236516,-200.0,0.00011035,2]
[420845631,1776628236526,-250.0,0.00011057,2]
[420845632,1776628236535,-5000.0,0.00011057,2]
[420845633,1776628236545,-341.53975275,0.00011057,2]
[420845634,1776628236554,-344.05633619,0.00011099,2]
[420845635,1776628236563,-344.05633613,0.00011099,2]
[420845636,1776628236572,-153.65,0.00011182,2]
[420845637,1776628236582,-89339.94342162,0.00011221,2]
[420845639,1776628238433,-598.06911756,0.00010386,2]
[420845640,1776628238443,-3344.19209911,0.00011221,2]
[420845641,1776628238460,-20197.1028935,0.00011221,2]
[420845642,1776628238479,-265.712551,0.00011221,2]
[420845643,1776628238490,-2851.21217869,0.00011221,2]
[420845644,1776628238501,-2287.51685608,0.00011221,2]
[420845645,1776628238510,-500.0,0.00011288,2]
[420845646,1776628238520,-205.06,0.00011309,2]
[420845647,1776628238529,-420.0,0.00011333,2]
[420845648,1776628238539,-420.0,0.00011333,2]
[420845649,1776628238548,-420.0,0.00011334,2]
[420845650,1776628238558,-1680.0,0.00011337,2]
[420845651,1776628238567,-344.05633613,0.00011397,2]
[420845652,1776628238577,-255.0,0.00011411,2]
[420845653,1776628238586,-1229.51192532,0.00011496,2]
[420845654,1776628238595,-150.68563301,0.0001154,2]
[420845655,1776628238605,-150.0,0.0001154,2]
[420845656,1776628238616,-150.0,0.0001154,2]
[420845657,1776628238626,-150.0,0.0001154,2]
[420845658,1776628238635,-150.0,0.0001154,2]
[420845659,1776628238646,-150.0,0.0001154,2]
[420845660,1776628238657,-150.0,0.0001154,2]
[420845661,1776628238667,-150.0,0.0001154,2]
[420845663,1776628238676,-150.0,0.0001154,2]
[420845665,1776628238686,-150.0,0.0001154,2]
[420845667,1776628238695,-925.41281269,0.00011549,2]
[420845669,1776628238708,-2038.86718731,0.00011549,2]
[420845671,1776628238717,-205.08,0.00011583,2]
[420845673,1776628238727,-2000.0,0.00011596,2]
[420845675,1776628238736,-1600.0,0.00011596,2]
[420845677,1776628238745,-150.0,0.00011796,2]
[420845679,1776628238755,-153.65,0.00011804,2]
[420845681,1776628238764,-150.0,0.0001186,2]
[420845683,1776628238774,-150.0,0.0001186,2]
[420845685,1776628238784,-119.06974946,0.00011897,2]
[420845688,1776628238803,-224.98658667,0.00011897,2]
[420845690,1776628238812,-224.35382583,0.00011957,2]
[420845718,1776628240679,-500.0,0.00010394,2]
[420845719,1776628240698,-1347.27935409,0.00010394,2]
[420845720,1776628240826,-295.44116587,0.00010394,2]
[420845721,1776628240838,-4545.95952329,0.00010394,2]
[420845727,1776628243294,-16533.17424791,0.00010394,2]
[420845728,1776628243311,-1607.59263891,0.00010394,2]
[420845729,1776628243505,-4461.36695267,0.00010394,2]
[420845908,1776628248550,-598.06911756,0.00010386,2]
[420845910,1776628248560,-3101.93088244,0.00010394,2]
[420845914,1776628248586,-398.90278176,0.00010394,2]
[420845959,1776628248993,-7503.3499,0.00010394,2]
[420845961,1776628249004,-8329.77429792,0.00010394,2]
[420845963,1776628249016,-2528.300001,0.00010394,2]
[420846126,1776629065543,200.0,9.9e-05,3]
[420846127,1776629066611,500.0,0.0001,3]
[420846128,1776629103905,150.0,9.345e-05,2]
[420846129,1776629103939,150.0,9.518e-05,2]
[420846130,1776629103970,150.0,9.691e-05,2]
[420846131,1776629103998,150.0,9.864e-05,2]
[420846132,1776629139534,150.0,9.345e-05,2]
[420846133,1776629139584,150.0,9.864e-05,2]
[420846134,1776629139766,150.0,9.345e-05,2]
[420846135,1776629139798,150.0,9.691e-05,2]
[420846136,1776629143887,150.0,9.345e-05,2]
[420846137,1776629145544,152.88062369,9.345e-05,2]
[420846138,1776629145649,150.0,9.345e-05,2]
[420846139,1776629145730,150.0,9.605e-05,2]
[420846140,1776629145791,150.0,9.864e-05,2]
[420846141,1776629150364,150.00000001,9.345e-05,2]
[420846142,1776629158533,150.0,9.345e-05,2]
[420846143,1776629158602,150.0,9.691e-05,2]
[420846144,1776629158819,242.74312326,9.345e-05,2]
[420846145,1776629158899,150.0,9.345e-05,2]
[420846146,1776629159364,150.0,9.345e-05,2]
[420846147,1776629159421,150.0,9.691e-05,2]
[420846148,1776629198849,738.082804,9.986e-05,2]
[420846149,1776629226095,1500.0,9.9e-05,3]
[420846150,1776629228211,3100.0,0.0001,3]
[420846155,1776629383124,-253.0,0.00010037,2]
[420846156,1776629383147,-192.00088286,0.00010037,2]
[420846157,1776629415582,309.56344904,9.937e-05,2]
[420846158,1776629415606,135.43745096,9.937e-05,2]
[420846166,1776629434059,-57.99911714,0.00010037,2]
[420846167,1776629434069,-150.0,0.00010037,2]
[420846168,1776629434078,-150.0,0.00010037,2]
[420846169,1776629434087,-92.00088286,0.00010037,2]
[420846170,1776629434099,-57.99911714,0.00010037,2]
[420846171,1776629434110,-150.0,0.00010037,2]
[420846172,1776629434122,-154.76701425,0.00010112,2]
[420846173,1776629434131,-1200.0,0.00010119,2]
[420846174,1776629434142,-300.0,0.00010119,2]
[420846175,1776629434151,-300.0,0.00010119,2]
[420846176,1776629434161,-150.0,0.0001012,3]
[420846177,1776629434170,-154.58823577,0.0001012,3]
[420846178,1776629434179,-500.0,0.0001012,3]
[420846179,1776629434188,-500.0,0.0001012,3]
[420846180,1776629434197,-500.0,0.0001012,3]
[420846181,1776629434206,-500.0,0.0001012,3]
[420846182,1776629434216,-327.31217055,0.0001012,3]
[420846183,1776629434225,-150.0,0.00010124,2]
[420846184,1776629434235,-150.0,0.00010211,2]
[420846185,1776629434245,-300.0,0.00010275,2]
[420846186,1776629434254,-150.0,0.00010276,2]
[420846187,1776629434264,-3981.52676724,0.00010277,2]
[420846188,1776629434277,-73574.89240585,0.00010277,2]
[420846189,1776629434287,-837.76494743,0.00010285,2]
[420846190,1776629434296,-1807.2077,0.00010287,2]
[420846191,1776629434306,-47641.7602,0.00010287,2]
[420846192,1776629434315,-1332.7844217,0.00010294,2]
[420846193,1776629434324,-4283.35,0.00010308,2]
[420846194,1776629434334,-3697.068,0.00010376,2]
[420846195,1776629434343,-193.163,0.00010376,2]
[420846196,1776629434352,-946.84847198,0.00010377,2]
[420846197,1776629434362,-179.34260199,0.00010384,2]
[420846198,1776629434371,-160.84763975,0.00010384,2]
[420846199,1776629434381,-298.0539811,0.00010384,2]
[420846200,1776629434390,-295.66864196,0.00010384,2]
[420846201,1776629434399,-150.68870468,0.00010384,2]
[420846202,1776629434409,-253.48247859,0.00010384,2]
[420846203,1776629434419,-150.0,0.00010384,2]
[420846204,1776629434428,-153.80598328,0.00010384,2]
[420846205,1776629434437,-415.69684355,0.00010386,2]
[420846206,1776629434446,-500.0,0.00010386,2]
[420846207,1776629434455,-500.0,0.00010386,2]
[420846208,1776629434464,-500.0,0.00010386,2]
[420846209,1776629434473,-500.0,0.00010386,2]
[420846210,1776629434483,-403.99568556,0.00010386,2]
[420846211,1776629434493,-500.0,0.00010386,2]
[420846212,1776629434504,-500.0,0.00010386,2]
[420846213,1776629434514,-500.0,0.00010386,2]
[420846214,1776629434525,-426.82104885,0.00010386,2]
[420846215,1776629434534,-500.0,0.00010386,2]
[420846216,1776629434543,-500.0,0.00010386,2]
[420846217,1776629434554,-500.0,0.00010386,2]
[420846218,1776629434564,-500.0,0.00010386,2]
[420846219,1776629434574,-500.0,0.00010386,2]
[420846220,1776629434583,-500.0,0.00010386,2]
[420846221,1776629434592,-425.19606455,0.00010386,2]
[420846222,1776629434602,-500.0,0.00010386,2]
[420846223,1776629434611,-500.00000001,0.00010386,2]
[420846224,1776629434620,-500.0,0.00010386,2]
[420846225,1776629434630,-500.0,0.00010386,2]
[420846226,1776629434639,-500.0,0.00010386,2]
[420846227,1776629434648,-500.0,0.00010386,2]
[420846228,1776629434658,-500.0,0.00010386,2]
[420846229,1776629435202,-500.0,0.00010386,2]
[420846230,1776629435212,-500.0,0.00010386,2]
[420846231,1776629435222,-500.0,0.00010386,2]
[420846232,1776629435231,-500.0,0.00010386,2]
[420846233,1776629435241,-500.0,0.00010386,2]
[420846234,1776629435250,-208.13671038,0.00010386,2]
[420846235,1776629435260,-500.0,0.00010386,2]
[420846236,1776629435269,-208.13671038,0.00010386,2]
[420846237,1776629435279,-500.0,0.00010386,2]
[420846238,1776629435288,-208.13671038,0.00010386,2]
[420846239,1776629435298,-250.0,0.00010386,2]
[420846240,1776629435309,-2970.81011877,0.00010387,2]
[420846241,1776629435321,-525.82163654,0.00010387,2]
[420846242,1776629435333,-1154.38914939,0.00010387,2]
[420846243,1776629435344,-1641.08280428,0.00010387,2]
[420846244,1776629435363,-195828.97143857,0.00010387,2]
[420846245,1776629435374,-8557.07147718,0.00010387,2]
[420846246,1776629435386,-5165.35384848,0.00010387,2]
[420846247,1776629435398,-125827.71314923,0.00010387,2]
[420846248,1776629435414,-1706.452926,0.00010387,2]
[420846249,1776629435426,-1771.2496,0.00010387,2]
[420846250,1776629435437,-1724.625,0.00010387,2]
[420846251,1776629435449,-1000.0,0.00010387,2]
[420846252,1776629435460,-1134.09669,0.00010387,2]
[420846253,1776629435471,-29928.41803006,0.00010387,2]
[420846254,1776629438451,-500.0,0.0001012,3]
[420846255,1776629438461,-150.0,0.0001012,3]
[420846256,1776629438471,-161.13091364,0.0001012,3]
[420846257,1776629438480,-500.0,0.0001012,3]
[420846258,1776629438489,-150.0,0.0001012,3]
[420846259,1776629438499,-5.25716895,0.0001012,3]
[420846260,1776629438611,-494.74283105,0.0001012,3]
[420846261,1776629438620,-150.0,0.0001012,3]
[420846262,1776629438630,-500.0,0.0001012,3]
[420846263,1776629438639,-254.89749003,0.0001012,3]
[420846264,1776629438649,-500.0,0.0001012,3]
[420846265,1776629438659,-158.71178538,0.0001012,3]
[420846266,1776629438668,-468.78634354,0.0001012,3]
[420846269,1776629440823,-31.21365646,0.0001012,3]
[420846270,1776629440833,-500.0,0.0001012,3]
[420846271,1776629440843,-164.11863008,0.0001012,3]
[420846272,1776629440852,-500.0,0.0001012,3]
[420846273,1776629440862,-500.0,0.0001012,3]
[420846274,1776629440872,-157.14731396,0.0001012,3]
[420846275,1776629440882,-500.0,0.0001012,3]
[420846276,1776629440891,-500.0,0.00010386,2]
[420846277,1776629440900,-416.27342076,0.00010386,2]
[420846278,1776629440910,-500.0,0.00010386,2]
[420846279,1776629440919,-33535.74697874,0.00010387,2]
[420846280,1776629441025,-12776.40077379,0.00010387,2]
[420846281,1776629441039,-445.00088286,0.00010387,2]
[420846301,1776629443827,-9544.57965649,0.00010387,2]
[420846313,1776629447031,-5358.98,0.00010387,2]
[420846314,1776629447109,-1486.13849445,0.00010387,2]
[420846315,1776629447121,-10433.12609809,0.00010387,2]
[420846316,1776629447168,-4815.85663283,0.00010387,2]
[420846318,1776629461586,178.51,9.871e-05,2]
[420846319,1776629473347,178.36,9.872e-05,2]
[420846320,1776629527515,1340.0,9.872e-05,3]
[420846321,1776629533282,152.0,9.872e-05,3]
[420846322,1776629538068,150.0,9.874e-05,2]
[420846323,1776629586797,1273.0,9.874e-05,3]
[420846324,1776629593127,152.0,9.874e-05,3]
[420846325,1776629605011,2000.0,9.976e-05,2]
[420846326,1776629646845,1210.0,9.976e-05,3]
[420846327,1776629658440,152.0,9.976e-05,3]
[420846328,1776629705649,1149.0,9.976e-05,3]
[420846329,1776629705718,151.0,9.976e-05,3]
[420846330,1776629739876,152.0,9.976e-05,3]
[420846331,1776629750336,165.0,9.976e-05,3]
[420846332,1776629765752,1092.0,9.976e-05,3]
[420846339,1776629813337,218.38,9.605e-05,2]
[420846340,1776629833779,1037.0,9.976e-05,3]
[420846341,1776629890735,985.0,9.976e-05,3]
[420846343,1776629945066,263.63,9.976e-05,3]
[420846344,1776629945089,672.37,9.976e-05,3]
[420846345,1776630005789,151.0,9.976e-05,3]
[420846346,1776630008466,562.0,9.976e-05,3]
[420846347,1776630052086,165.0,9.976e-05,3]
[420846348,1776630067610,861.0,9.976e-05,3]
[420846349,1776630073612,150.0,9.913e-05,2]
[420846350,1776630073666,150.0,9.913e-05,2]
[420846351,1776630073699,200.0,9.913e-05,2]
[420846352,1776630127274,818.0,9.976e-05,3]
[420846353,1776630167363,177.28,9.827e-05,2]
[420846354,1776630187700,777.0,9.976e-05,3]
[420846355,1776630254897,500.0,9.902e-05,2]
[420846356,1776630255061,584.10959855,9.902e-05,2]
[420846357,1776630311879,738.0,9.976e-05,3]
[420846358,1776630319910,150.0,9.271e-05,2]
[420846359,1776630324991,151.0,9.976e-05,3]
[420846360,1776630338879,150.0,9.902e-05,2]
[420846361,1776630339062,150.0,9.902e-05,2]
[420846362,1776630339132,150.0,9.902e-05,2]
[420846363,1776630339219,150.0,9.902e-05,2]
[420846364,1776630339293,150.0,9.902e-05,2]
[420846365,1776630339378,150.0,9.902e-05,2]
[420846366,1776630339455,150.0,9.902e-05,2]
[420846367,1776630339565,186.62275572,9.902e-05,2]
[420846368,1776630339622,150.0,9.902e-05,2]
[420846369,1776630339802,150.0,9.902e-05,2]
[420846370,1776630340183,250.0,9.902e-05,2]
[420846371,1776630367582,702.0,9.976e-05,3]
[420846373,1776630444233,1300.0,9.9e-05,3]
[420846374,1776630446336,2700.0,0.0001,3]
[420846375,1776630487595,666.0,9.976e-05,3]
[420846376,1776630520499,153.96276887,9.977e-05,2]
[420846382,1776630562751,2540.42447541,9.314e-05,2]
[420846383,1776630562775,2361.46552459,9.314e-05,2]
[420846384,1776630605296,633.0,9.976e-05,3]
[420846385,1776630607633,151.0,9.976e-05,3]
[420846392,1776630631653,-279.0,0.00010019,2]
[420846393,1776630631663,-250.0,0.00010048,2]
[420846394,1776630631673,-300.0,0.00010077,2]
[420846395,1776630631682,-53963.74980005,0.00010078,2]
[420846396,1776630631696,-578.04010058,0.00010078,2]
[420846397,1776630631756,-1939.175,0.00010078,2]
[420846398,1776630631793,-10774.20229937,0.00010078,2]
[420846399,1776630631803,-6781.9208,0.00010078,2]
[420846400,1776630631812,-55503.85981682,0.00010078,2]
[420846401,1776630631824,-43276.40958318,0.00010078,2]
[420846402,1776630631834,-2500.0,0.00010078,2]
[420846403,1776630631843,-1142.38664718,0.0001008,2]
[420846404,1776630631853,-1000.0,0.000101,2]
[420846405,1776630631864,-1000.0,0.000101,3]
[420846406,1776630631873,-631.23231466,0.00010168,2]
[420846408,1776630631883,-152.0,0.00010169,7]
[420846410,1776630631893,-152.0,0.00010169,7]
[420846412,1776630631902,-152.0,0.00010169,7]
[420846414,1776630631911,-500.0,0.00010171,2]
[420846416,1776630631921,-151.0,0.00010171,2]
[420846418,1776630631931,-500.0,0.00010171,2]
[420846420,1776630631940,-151.0,0.00010171,2]
[420846422,1776630631949,-500.0,0.00010171,2]
[420846424,1776630631959,-151.0,0.00010171,2]
[420846426,1776630631968,-500.0,0.00010171,2]
[420846427,1776630631977,-151.0,0.00010171,2]
[420846429,1776630631986,-500.0,0.00010171,2]
[420846431,1776630631994,-151.0,0.00010171,2]
[420846433,1776630632004,-500.0,0.00010171,2]
[420846435,1776630632013,-151.0,0.00010171,2]
[420846437,1776630632022,-200.0,0.00010171,2]
[420846439,1776630632033,-500.0,0.00010171,2]
[420846441,1776630632042,-151.0,0.00010171,2]
[420846443,1776630632051,-500.0,0.00010171,2]
[420846445,1776630632060,-151.0,0.00010171,2]
[420846447,1776630632069,-500.0,0.00010171,2]
[420846449,1776630632078,-151.0,0.00010171,2]
[420846451,1776630632087,-500.0,0.00010171,2]
[420846453,1776630632096,-151.0,0.00010171,2]
[420846455,1776630632105,-500.0,0.00010171,2]
[420846457,1776630632115,-151.0,0.00010171,2]
[420846459,1776630632124,-500.0,0.00010171,2]
[420846461,1776630632134,-151.0,0.00010171,2]
[420846463,1776630632144,-500.0,0.00010171,2]
[420846465,1776630632153,-151.0,0.00010171,2]
[420846467,1776630632162,-500.0,0.00010173,2]
[420846469,1776630632171,-477.68136442,0.00010173,2]
[420846471,1776630632180,-500.0,0.00010173,2]
[420846473,1776630632189,-500.0,0.00010173,2]
[420846475,1776630632198,-500.0,0.00010173,2]
[420846477,1776630632207,-500.0,0.00010173,2]
[420846479,1776630632216,-272.84,0.00010174,2]
[420846481,1776630632227,-500.0,0.00010174,2]
[420846483,1776630632238,-500.0,0.00010174,2]
[420846485,1776630632247,-500.0,0.00010174,2]
[420846487,1776630632257,-500.35688171,0.00010174,2]
[420846489,1776630632266,-500.0,0.00010174,2]
[420846491,1776630632275,-500.0,0.00010174,2]
[420846493,1776630632284,-500.0,0.00010174,2]
[420846495,1776630632293,-500.0,0.00010174,2]
[420846497,1776630632303,-433.95222071,0.00010174,2]
[420846499,1776630632312,-500.0,0.00010174,2]
[420846501,1776630632321,-500.0,0.00010174,2]
[420846503,1776630632330,-345.05670159,0.00010174,2]
[420846505,1776630632340,-500.0,0.00010174,2]
[420846507,1776630632349,-500.0,0.00010174,2]
[420846509,1776630632358,-369.38707669,0.00010174,2]
[420846511,1776630632367,-500.0,0.00010174,2]
[420846513,1776630632376,-500.0,0.00010174,2]
[420846515,1776630632385,-492.98710924,0.00010174,2]
[420846517,1776630632394,-430.0,0.00010174,2]
[420846519,1776630632403,-500.0,0.00010174,2]
[420846521,1776630632412,-500.0,0.00010174,2]
[420846523,1776630632421,-500.0,0.00010174,2]
[420846525,1776630632430,-500.0,0.00010174,2]
[420846527,1776630632439,-500.0,0.00010174,2]
[420846529,1776630632447,-500.0,0.00010174,2]
[420846531,1776630632457,-500.0,0.00010174,2]
[420846533,1776630632465,-500.0,0.00010174,2]
[420846535,1776630632474,-500.0,0.00010174,2]
[420846537,1776630632483,-500.0,0.00010174,2]
[420846539,1776630632492,-500.0,0.00010174,2]
[420846593,1776630632998,-500.0,0.00010174,2]
[420846595,1776630633008,-500.0,0.00010174,2]
[420846597,1776630633017,-500.0,0.00010174,2]
[420846599,1776630633026,-500.0,0.00010174,2]
[420846601,1776630633036,-500.0,0.00010174,2]
[420846603,1776630633045,-500.0,0.00010174,2]
[420846605,1776630633054,-500.0,0.00010174,2]
[420846607,1776630633065,-500.0,0.00010174,2]
[420846609,1776630633074,-500.0,0.00010174,2]
[420846611,1776630633084,-500.0,0.00010174,2]
[420846613,1776630633094,-500.0,0.00010174,2]
[420846615,1776630633103,-500.0,0.00010174,2]
[420846617,1776630633112,-247.29361289,0.00010174,2]
[420846619,1776630633123,-500.0,0.00010174,2]